fUSD/lending_fUSD_20250525
["ID","MTS","AMOUNT","RATE_DAILY","PERIOD"]
[362271453,1748135445381,-2645.28,0.00019999,2]
[362271454,1748135445391,-2645.28,0.00019999,2]
[362271455,1748135445401,-2645.31605792,0.00019999,2]
[362271456,1748135445410,-194.69,0.00019999,2]
[362271457,1748135445419,-420.0,0.00019999,2]
[362271458,1748135445428,-420.0,0.00019999,2]
[362271459,1748135445438,-420.0,0.00019999,2]
[362271460,1748135445450,-420.0,0.00019999,2]
[362271461,1748135445459,-987.64,0.00019999,2]
[362271462,1748135445470,-420.0,0.00019999,2]
[362271464,1748135445479,-987.64,0.00019999,2]
[362271465,1748135445488,-420.0,0.00019999,2]
[362271466,1748135445498,-987.64,0.00019999,2]
[362271467,1748135445507,-420.0,0.00019999,2]
[362271468,1748135445518,-987.64,0.00019999,2]
[362271469,1748135445527,-420.0,0.00019999,2]
[362271471,1748135445537,-987.64,0.00019999,2]
[362271472,1748135445547,-420.0,0.00019999,2]
[362271473,1748135445556,-987.64,0.00019999,2]
[362271474,1748135445565,-420.0,0.00019999,2]
[362271475,1748135445575,-987.64,0.00019999,2]
[362271476,1748135445584,-420.0,0.00019999,2]
[362271477,1748135445594,-987.64,0.00019999,2]
[362271478,1748135445603,-420.0,0.00019999,2]
[362271479,1748135445613,-987.64,0.00019999,2]
[362271480,1748135445622,-420.0,0.00019999,2]
[362271481,1748135445631,-485.93102771,0.00019999,2]
[362271482,1748135445640,-987.64,0.00019999,2]
[362271483,1748135445650,-987.64,0.00019999,2]
[362271484,1748135445660,-987.64,0.00019999,2]
[362271485,1748135445669,-987.64,0.00019999,2]
[362271486,1748135445679,-987.64,0.00019999,2]
[362271487,1748135445688,-987.64,0.00019999,2]
[362271488,1748135445697,-987.64,0.00019999,2]
[362271489,1748135445706,-987.64,0.00019999,2]
[362271490,1748135445715,-987.64,0.00019999,2]
[362271491,1748135445724,-987.64,0.00019999,2]
[362271492,1748135445734,-987.64,0.00019999,2]
[362271493,1748135445743,-987.64,0.00019999,2]
[362271494,1748135445753,-987.85,0.00019999,2]
[362271495,1748135445762,-730.01,0.00019999,2]
[362271496,1748135445771,-730.01,0.00019999,2]
[362271497,1748135445781,-730.01,0.00019999,2]
[362271498,1748135445790,-730.01,0.00019999,2]
[362271499,1748135445799,-730.01,0.00019999,2]
[362271500,1748135445808,-730.01,0.00019999,2]
[362271501,1748135445817,-730.01,0.00019999,2]
[362271502,1748135445826,-730.01,0.00019999,2]
[362271503,1748135445835,-730.01,0.00019999,2]
[362271504,1748135445845,-730.01,0.00019999,2]
[362271505,1748135445856,-730.01,0.00019999,2]
[362271506,1748135445865,-730.01,0.00019999,2]
[362271507,1748135445875,-730.01,0.00019999,2]
[362271508,1748135445884,-730.01,0.00019999,2]
[362271509,1748135445894,-730.01,0.00019999,2]
[362271510,1748135445906,-730.01,0.00019999,2]
[362271511,1748135445917,-730.01,0.00019999,2]
[362271512,1748135445928,-730.01,0.00019999,2]
[362271513,1748135445940,-730.01,0.00019999,2]
[362271514,1748135445950,-730.01,0.00019999,2]
[362271515,1748135445960,-730.2,0.00019999,2]
[362271516,1748135445970,-2273.63,0.00019999,2]
[362271517,1748135445981,-1183.83,0.00019999,2]
[362271518,1748135445993,-2273.63,0.00019999,2]
[362271519,1748135446002,-2273.63,0.00019999,2]
[362271520,1748135446011,-1183.83,0.00019999,2]
[362271521,1748135446021,-2273.63,0.00019999,2]
[362271522,1748135446031,-1183.83,0.00019999,2]
[362271523,1748135446043,-2273.63,0.00019999,2]
[362271524,1748135446052,-1183.83,0.00019999,2]
[362271525,1748135446064,-2273.63,0.00019999,2]
[362271526,1748135446074,-1183.83,0.00019999,2]
[362271527,1748135446084,-2273.63,0.00019999,2]
[362271528,1748135446093,-420.0,0.00019999,2]
[362271529,1748135446103,-2273.63,0.00019999,2]
[362271530,1748135446113,-1183.83,0.00019999,2]
[362271531,1748135446122,-420.0,0.00019999,2]
[362271532,1748135446132,-2273.63,0.00019999,2]
[362271533,1748135446141,-1183.83,0.00019999,2]
[362271534,1748135446151,-2273.63,0.00019999,2]
[362271535,1748135446160,-420.0,0.00019999,2]
[362271536,1748135446170,-1183.83,0.00019999,2]
[362271537,1748135446182,-2273.63,0.00019999,2]
[362271538,1748135446193,-1183.83,0.00019999,2]
[362271539,1748135446203,-420.0,0.00019999,2]
[362271540,1748135446214,-2273.63,0.00019999,2]
[362271541,1748135446223,-1183.83,0.00019999,2]
[362271542,1748135446233,-420.0,0.00019999,2]
[362271543,1748135446242,-2273.63,0.00019999,2]
[362271544,1748135446251,-420.0,0.00019999,2]
[362271545,1748135446261,-1183.83,0.00019999,2]
[362271546,1748135446271,-2273.63,0.00019999,2]
[362271547,1748135446281,-420.0,0.00019999,2]
[362271548,1748135446292,-2273.63,0.00019999,2]
[362271549,1748135446303,-420.0,0.00019999,2]
[362271550,1748135446314,-2273.63,0.00019999,2]
[362271551,1748135446324,-420.0,0.00019999,2]
[362271552,1748135446335,-2273.63,0.00019999,2]
[362271553,1748135446346,-2273.63,0.00019999,2]
[362271554,1748135446358,-1183.83,0.00019999,2]
[362271555,1748135446369,-2273.63,0.00019999,2]
[362271556,1748135446379,-420.0,0.00019999,2]
[362271557,1748135446390,-2273.74062005,0.00019999,2]
[362271558,1748135446401,-420.0,0.00019999,2]
[362271559,1748135446411,-1183.83,0.00019999,2]
[362271560,1748135446421,-1183.83,0.00019999,2]
[362271561,1748135446431,-420.0,0.00019999,2]
[362271562,1748135446442,-1183.83,0.00019999,2]
[362271563,1748135446452,-420.0,0.00019999,2]
[362271564,1748135446461,-150.82782523,0.00019999,2]
[362271565,1748135446472,-1183.83,0.00019999,2]
[362271566,1748135446665,-1183.83,0.00019999,2]
[362271567,1748135446676,-1183.83,0.00019999,2]
[362271568,1748135446686,-1183.83,0.00019999,2]
[362271569,1748135446696,-1183.83,0.00019999,2]
[362271570,1748135446706,-1183.8391659,0.00019999,2]
[362271571,1748135446716,-586.28,0.00019999,2]
[362271572,1748135446727,-586.28,0.00019999,2]
[362271573,1748135446737,-586.28,0.00019999,2]
[362271574,1748135446746,-586.28,0.00019999,2]
[362271575,1748135446756,-586.28,0.00019999,2]
[362271576,1748135446766,-586.28,0.00019999,2]
[362271577,1748135446775,-586.28,0.00019999,2]
[362271578,1748135446785,-586.28,0.00019999,2]
[362271579,1748135446795,-586.28,0.00019999,2]
[362271580,1748135446805,-586.28,0.00019999,2]
[362271581,1748135446816,-586.28,0.00019999,2]
[362271582,1748135446827,-586.28,0.00019999,2]
[362271583,1748135446837,-586.28,0.00019999,2]
[362271584,1748135446846,-586.28,0.00019999,2]
[362271585,1748135446857,-586.28,0.00019999,2]
[362271586,1748135446868,-586.28,0.00019999,2]
[362271587,1748135446883,-586.28,0.00019999,2]
[362271588,1748135446894,-586.28,0.00019999,2]
[362271589,1748135446905,-586.28,0.00019999,2]
[362271590,1748135446915,-586.40504358,0.00019999,2]
[362271591,1748135446925,-774.77,0.00019999,2]
[362271592,1748135446934,-774.77,0.00019999,2]
[362271593,1748135446944,-774.77,0.00019999,2]
[362271594,1748135446953,-774.77,0.00019999,2]
[362271595,1748135446963,-774.77,0.00019999,2]
[362271596,1748135446973,-774.77,0.00019999,2]
[362271597,1748135446983,-774.77,0.00019999,2]
[362271598,1748135446993,-774.77,0.00019999,2]
[362271599,1748135447003,-774.77,0.00019999,2]
[362271600,1748135447012,-774.77,0.00019999,2]
[362271601,1748135447022,-774.77,0.00019999,2]
[362271602,1748135447031,-774.77,0.00019999,2]
[362271603,1748135447042,-774.77,0.00019999,2]
[362271604,1748135447052,-774.77,0.00019999,2]
[362271605,1748135447062,-774.77,0.00019999,2]
[362271606,1748135447072,-774.77,0.00019999,2]
[362271607,1748135447083,-420.0,0.00019999,2]
[362271608,1748135447093,-774.77,0.00019999,2]
[362271609,1748135447103,-774.77,0.00019999,2]
[362271610,1748135447112,-420.0,0.00019999,2]
[362271611,1748135447122,-774.77,0.00019999,2]
[362271612,1748135447132,-774.77,0.00019999,2]
[362271613,1748135447143,-420.0,0.00019999,2]
[362271614,1748135447152,-774.96,0.00019999,2]
[362271615,1748135447162,-420.0,0.00019999,2]
[362271616,1748135447172,-420.0,0.00019999,2]
[362271617,1748135447182,-420.0,0.00019999,2]
[362271618,1748135447192,-420.0,0.00019999,2]
[362271619,1748135447202,-420.0,0.00019999,2]
[362271620,1748135447212,-420.0,0.00019999,2]
[362271621,1748135447222,-420.0,0.00019999,2]
[362271622,1748135447233,-420.0,0.00019999,2]
[362271623,1748135447245,-420.0,0.00019999,2]
[362271624,1748135447256,-420.0,0.00019999,2]
[362271625,1748135447267,-420.0,0.00019999,2]
[362271626,1748135447278,-420.0,0.00019999,2]
[362271627,1748135447294,-420.0,0.00019999,2]
[362271628,1748135447306,-504.84,0.00019999,2]
[362271629,1748135447317,-420.0,0.00019999,2]
[362271630,1748135447327,-420.0,0.00019999,2]
[362271631,1748135447338,-420.0,0.00019999,2]
[362271632,1748135447348,-420.0,0.00019999,2]
[362271633,1748135447359,-420.0,0.00019999,2]
[362271634,1748135447369,-420.0,0.00019999,2]
[362271635,1748135447379,-420.0,0.00019999,2]
[362271636,1748135447389,-420.0,0.00019999,2]
[362271637,1748135447399,-420.0,0.00019999,2]
[362271638,1748135447409,-420.0,0.00019999,2]
[362271639,1748135447419,-420.0,0.00019999,2]
[362271640,1748135447429,-420.0,0.00019999,2]
[362271641,1748135447442,-420.0,0.00019999,2]
[362271642,1748135447454,-420.0,0.00019999,2]
[362271643,1748135447464,-324.58,0.00019999,2]
[362271644,1748135447474,-20000.0,0.00019999,2]
[362271645,1748135447485,-641.0,0.00019999,2]
[362271646,1748135447496,-555.9272785,0.0002,2]
[362271647,1748135447506,-348669.85059659,0.0002,2]
[362271648,1748135447516,-1279317.20476708,0.0002,2]
[362271649,1748135447750,-904.11020441,0.0002,2]
[362271650,1748135448021,-204.0,0.00018604,2]
[362271651,1748135448030,-552.20505079,0.00019,2]
[362271652,1748135448051,-163.00345821,0.00019,2]
[362271653,1748135448061,-1979.95706108,0.00019896,2]
[362271654,1748135448077,-1844.02723743,0.00019896,2]
[362271655,1748135448087,-3823.98429851,0.00019897,2]
[362271656,1748135448097,-1062.62202568,0.000199,2]
[362271657,1748135448107,-546.63668908,0.00019994,2]
[362271658,1748135448117,-90831.28088758,0.0002,2]
[362271659,1748135448129,-700.5346234,0.0002,2]
[362271660,1748135448140,-10703.5,0.0002,2]
[362271661,1748135448152,-1130.55,0.0002,2]
[362271662,1748135448165,-7560.0,0.0002,2]
[362271663,1748135499081,441.6664,0.00017061,2]
[362271664,1748135499106,90.3236,0.00017061,2]
[362271665,1748135597730,500.0,0.00025691,120]
[362271667,1748136314001,374.57,0.00013699,2]
[362271669,1748136344283,-364.256013,0.00018688,2]
[362271670,1748136344305,-157.73,0.00018783,2]
[362271671,1748136344327,-1037.38276211,0.00018783,2]
[362271672,1748136450095,-337.51723789,0.00018783,2]
[362271673,1748136450117,-150.0,0.00018798,7]
[362271674,1748136450138,-662.72,0.00018814,2]
[362271675,1748136450162,-250.0,0.00018847,2]
[362271676,1748136450182,-250.12213887,0.00018869,2]
[362271679,1748136523022,3366.12706024,0.00013368,2]
[362271690,1748136631923,-68.09786113,0.00018869,2]
[362271691,1748136631933,-1000.0,0.00018869,2]
[362271692,1748136631942,-494.24,0.00018904,2]
[362271693,1748136631951,-1573.91,0.00018927,2]
[362271694,1748136631961,-2100.0,0.000191,6]
[362271695,1748136631970,-1200.0,0.00019199,2]
[362271696,1748136631979,-300.0,0.00019199,2]
[362271697,1748136631989,-4300.0,0.000192,7]
[362271698,1748136631998,-6400.0,0.000193,7]
[362271699,1748136632007,-340.4,0.000193,2]
[362271700,1748136632017,-1159.67,0.000193,2]
[362271701,1748136632026,-170.2,0.000193,2]
[362271702,1748136632035,-172.96,0.000193,2]
[362271703,1748136632045,-384.83,0.000193,2]
[362271704,1748136632055,-335.69213867,0.00019325,2]
[362271705,1748136632066,-196.29786133,0.00019325,2]
[362271706,1748136632076,-150.99,0.000194,2]
[362271707,1748136632085,-299.99,0.000194,7]
[362271708,1748136632096,-1159.67,0.000194,2]
[362271709,1748136632106,-340.24,0.000194,2]
[362271710,1748136632115,-53.20213915,0.000194,2]
[362271711,1748136632127,-1106.46786085,0.000194,2]
[362271712,1748136632136,-8600.0,0.000194,7]
[362271713,1748136632145,-1229.60481551,0.000195,7]
[362271714,1748136632164,-9570.39518449,0.000195,7]
[362271715,1748136632174,-514.361316,0.00019599,2]
[362271716,1748136632184,-2100.0,0.000196,7]
[362271717,1748136632195,-2100.0,0.000197,7]
[362271718,1748136632205,-207.4,0.00019714,2]
[362271719,1748136632215,-150.43,0.00019726,2]
[362271721,1748136632224,-150.43,0.00019726,2]
[362271723,1748136632234,-150.43,0.00019726,2]
[362271725,1748136632243,-150.43,0.00019726,2]
[362271728,1748136632252,-450.36,0.00019726,2]
[362271730,1748136632261,-906.62,0.00019726,2]
[362271732,1748136632271,-325.66,0.00019726,2]
[362271734,1748136632280,-16255.93164676,0.0001978,2]
[362271736,1748136632289,-1000.0,0.000198,4]
[362271738,1748136632299,-2100.0,0.000198,7]
[362271740,1748136632309,-5037.62388957,0.000198,2]
[362271742,1748136632318,-1308.949,0.00019808,2]
[362271744,1748136632327,-205.74297023,0.00019824,2]
[362271746,1748136632336,-200.0,0.0001984,2]
[362271747,1748136632346,-151.0,0.00019888,2]
[362271749,1748136632356,-2586.40641065,0.00019896,2]
[362271751,1748136632365,-2586.40641062,0.00019896,2]
[362271752,1748136632374,-2586.40641062,0.00019897,2]
[362271753,1748136632382,-2586.40641062,0.00019897,2]
[362271754,1748136632392,-2586.40641062,0.00019898,2]
[362271755,1748136632401,-2586.40641062,0.00019898,2]
[362271756,1748136632410,-2586.40641062,0.00019899,2]
[362271757,1748136632418,-161.59387592,0.00019899,2]
[362271758,1748136632428,-178.73444546,0.00019899,2]
[362271759,1748136632438,-2586.40641062,0.00019899,2]
[362271761,1748136632448,-178.73444543,0.00019899,2]
[362271762,1748136632457,-2586.40641062,0.000199,2]
[362271764,1748136632467,-178.73444543,0.000199,2]
[362271766,1748136632476,-294.49646274,0.000199,2]
[362271768,1748136632486,-816.654558,0.000199,2]
[362271770,1748136632498,-816.654558,0.000199,2]
[362271772,1748136632507,-29595.89108422,0.000199,2]
[362271774,1748136632517,-816.654558,0.000199,2]
[362271776,1748136632526,-816.654558,0.000199,2]
[362271778,1748136632536,-816.654558,0.000199,2]
[362271780,1748136632545,-816.654558,0.000199,2]
[362271782,1748136632555,-816.654558,0.000199,2]
[362271784,1748136632564,-816.654558,0.000199,2]
[362271786,1748136632573,-816.654558,0.000199,2]
[362271788,1748136632583,-816.654558,0.000199,2]
[362271790,1748136632593,-816.654558,0.000199,2]
[362271792,1748136632607,-816.654558,0.000199,2]
[362271794,1748136632615,-816.654558,0.000199,2]
[362271796,1748136632625,-2100.0,0.000199,7]
[362271798,1748136632634,-816.654558,0.000199,2]
[362271800,1748136632644,-816.654558,0.000199,2]
[362271802,1748136632653,-816.654558,0.000199,2]
[362271804,1748136632663,-711.36493033,0.000199,7]
[362271806,1748136632673,-816.654558,0.000199,2]
[362271808,1748136632682,-816.654558,0.000199,2]
[362271810,1748136632691,-2586.40641062,0.000199,2]
[362271812,1748136632701,-161.59387592,0.000199,2]
[362271814,1748136632710,-178.73444543,0.000199,2]
[362271816,1748136632720,-502.37876978,0.00019973,2]
[362271818,1748136632730,-500.0,0.00019973,2]
[362271820,1748136632739,-169.0,0.00019973,2]
[362271822,1748136632749,-153.51,0.0001999,2]
[362271824,1748136632757,-153.51,0.0001999,2]
[362271826,1748136632766,-153.51,0.0001999,2]
[362271828,1748136632775,-153.51,0.0001999,2]
[362271830,1748136632786,-153.51,0.0001999,2]
[362271832,1748136632795,-153.51,0.0001999,2]
[362271834,1748136632805,-153.51,0.0001999,2]
[362271836,1748136632814,-153.51,0.0001999,2]
[362271838,1748136632828,-153.51,0.0001999,2]
[362271840,1748136632838,-153.51,0.0001999,2]
[362271842,1748136632851,-153.51,0.0001999,2]
[362271844,1748136632862,-153.51,0.0001999,2]
[362271846,1748136632873,-153.51,0.0001999,2]
[362271848,1748136632883,-153.51,0.0001999,2]
[362271849,1748136632892,-153.51,0.0001999,2]
[362271850,1748136632902,-153.51,0.0001999,2]
[362271851,1748136632911,-420.0,0.00019995,2]
[362271852,1748136632920,-420.0,0.00019995,2]
[362271853,1748136632929,-3848.25,0.00019995,2]
[362271854,1748136632939,-420.0,0.00019995,2]
[362271855,1748136632948,-420.0,0.00019995,2]
[362271856,1748136632957,-420.0,0.00019995,2]
[362271857,1748136632966,-420.0,0.00019995,2]
[362271858,1748136632976,-551.1,0.00019995,2]
[362271859,1748136632985,-161.91642924,0.00019995,2]
[362271860,1748136632994,-450.68,0.00019995,2]
[362271861,1748136633003,-420.0,0.00019995,2]
[362271862,1748136633012,-420.0,0.00019995,2]
[362271863,1748136633021,-641.24,0.00019995,2]
[362271864,1748136633031,-420.0,0.00019995,2]
[362271865,1748136633040,-420.0,0.00019995,2]
[362271867,1748136633049,-169.4471593,0.00019995,2]
[362271869,1748136633059,-743.7,0.00019995,2]
[362271871,1748136633068,-420.0,0.00019995,2]
[362271873,1748136633078,-521.81752715,0.00019995,2]
[362271875,1748136633087,-420.0,0.00019995,2]
[362271877,1748136633096,-177.88228256,0.00019995,2]
[362271879,1748136633105,-2264.3231811,0.00019996,2]
[362271881,1748136633114,-110878.675344,0.00019996,2]
[362271883,1748136633124,-434.1600523,0.00019996,2]
[362271885,1748136633133,-10066.3315336,0.00019996,2]
[362271887,1748136633143,-3964.0798266,0.00019996,2]
[362271889,1748136633152,-188.67248607,0.00019997,2]
[362271891,1748136633161,-260.24740702,0.00019997,2]
[362271893,1748136633171,-152.17276522,0.00019997,2]
[362271895,1748136633180,-420.0,0.00019997,2]
[362271897,1748136633190,-329.07132241,0.00019997,2]
[362271899,1748136633199,-420.0,0.00019997,2]
[362271901,1748136633208,-420.0,0.00019997,2]
[362271903,1748136633217,-408.36414993,0.00019997,2]
[362271905,1748136633227,-852.61,0.00019998,2]
[362271907,1748136633236,-150.44800719,0.00019998,2]
[362271909,1748136633245,-1000.0,0.00019999,2]
[362271911,1748136633254,-150.0,0.00019999,2]
[362271913,1748136633263,-420.0,0.00019999,2]
[362271915,1748136633272,-420.0,0.00019999,2]
[362271917,1748136633281,-194.94,0.00019999,2]
[362271919,1748136633291,-420.0,0.00019999,2]
[362271921,1748136633299,-420.0,0.00019999,2]
[362271923,1748136633309,-420.0,0.00019999,2]
[362271925,1748136633318,-420.0,0.00019999,2]
[362271927,1748136633328,-420.0,0.00019999,2]
[362271929,1748136633337,-420.0,0.00019999,2]
[362271931,1748136633348,-420.0,0.00019999,2]
[362271933,1748136633357,-450.9,0.00019999,2]
[362271935,1748136633366,-420.0,0.00019999,2]
[362271937,1748136633375,-420.0,0.00019999,2]
[362271939,1748136633385,-420.0,0.00019999,2]
[362271941,1748136633394,-420.0,0.00019999,2]
[362271943,1748136633404,-420.0,0.00019999,2]
[362271945,1748136633413,-420.0,0.00019999,2]
[362271947,1748136633423,-420.0,0.00019999,2]
[362271948,1748136633432,-420.0,0.00019999,2]
[362271950,1748136633442,-420.0,0.00019999,2]
[362271952,1748136633451,-511.48,0.00019999,2]
[362271953,1748136633460,-3848.25,0.00019999,2]
[362271954,1748136633470,-2976.56311194,0.00019999,2]
[362271955,1748136633484,-462.33081884,0.00019999,2]
[362271956,1748136636653,250.0,0.00015,2]
[362271959,1748136637739,191.6664,0.00017,2]
[362271960,1748136637762,108.3336,0.00017,2]
[362271961,1748136637835,-218.72179883,0.00019598,2]
[362271963,1748136637845,-509.50579826,0.00019598,2]
[362271964,1748136637856,-199.54,0.00019829,2]
[362271965,1748136637866,-409.35606922,0.00019999,2]
[362271966,1748136637875,-1926.296673,0.00019999,2]
[362271968,1748136637936,-753.95967906,0.00019999,2]
[362271969,1748136637948,-1167.99364794,0.00019999,2]
[362271970,1748136637960,-1115.87109124,0.00019999,2]
[362271971,1748136638035,-2732.37890876,0.00019999,2]
[362271972,1748136638045,-1945.88434989,0.00019999,2]
[362271973,1748136638056,-1530.01129911,0.00019999,2]
[362271974,1748136638135,-372.354351,0.00019999,2]
[362271975,1748136638150,-0.52368005,0.00019999,2]
[362272002,1748136640116,-350.0,0.00019,2]
[362272003,1748136640126,-500.0,0.00019598,2]
[362272004,1748136640136,-500.0,0.00019598,2]
[362272005,1748136640146,-90.0,0.00019598,2]
[362272006,1748136640158,-105.30815381,0.00019598,2]
[362272007,1748136640167,-3847.72631995,0.00019999,2]
[362272008,1748136640177,-3848.25,0.00019999,2]
[362272009,1748136640187,-3848.25,0.00019999,2]
[362272010,1748136640196,-3848.25,0.00019999,2]
[362272011,1748136640206,-3848.25,0.00019999,2]
[362272012,1748136640215,-3848.25,0.00019999,2]
[362272013,1748136640225,-3848.25,0.00019999,2]
[362272014,1748136640234,-3848.25,0.00019999,2]
[362272015,1748136640244,-3848.25,0.00019999,2]
[362272016,1748136640253,-3848.25,0.00019999,2]
[362272017,1748136640262,-3848.25,0.00019999,2]
[362272018,1748136640272,-3848.25,0.00019999,2]
[362272019,1748136640282,-3848.25,0.00019999,2]
[362272020,1748136640291,-3848.25,0.00019999,2]
[362272021,1748136640301,-3848.25,0.00019999,2]
[362272022,1748136640310,-3848.25,0.00019999,2]
[362272023,1748136640320,-3848.25,0.00019999,2]
[362272024,1748136640329,-3848.26941508,0.00019999,2]
[362272025,1748136640338,-502.24,0.00019999,2]
[362272026,1748136640347,-420.0,0.00019999,2]
[362272027,1748136640358,-501.93,0.00019999,2]
[362272028,1748136640367,-420.0,0.00019999,2]
[362272029,1748136640376,-420.0,0.00019999,2]
[362272030,1748136640385,-420.0,0.00019999,2]
[362272031,1748136640395,-420.0,0.00019999,2]
[362272032,1748136640404,-420.0,0.00019999,2]
[362272033,1748136640413,-420.0,0.00019999,2]
[362272035,1748136640422,-191.31,0.00019999,2]
[362272037,1748136640432,-551.1,0.00019999,2]
[362272039,1748136640441,-551.1,0.00019999,2]
[362272041,1748136640450,-551.1,0.00019999,2]
[362272043,1748136640459,-551.1,0.00019999,2]
[362272045,1748136640469,-551.1,0.00019999,2]
[362272047,1748136640478,-551.1,0.00019999,2]
[362272048,1748136640488,-551.1,0.00019999,2]
[362272050,1748136640497,-551.1,0.00019999,2]
[362272052,1748136640506,-551.1,0.00019999,2]
[362272053,1748136640515,-551.1,0.00019999,2]
[362272055,1748136640525,-551.1,0.00019999,2]
[362272056,1748136640534,-551.1,0.00019999,2]
[362272058,1748136640543,-551.1,0.00019999,2]
[362272060,1748136640552,-551.1,0.00019999,2]
[362272061,1748136640562,-551.1,0.00019999,2]
[362272062,1748136640571,-551.1,0.00019999,2]
[362272063,1748136640580,-551.1,0.00019999,2]
[362272064,1748136640590,-551.1,0.00019999,2]
[362272065,1748136640600,-551.1,0.00019999,2]
[362272066,1748136640609,-551.1,0.00019999,2]
[362272067,1748136640619,-551.1,0.00019999,2]
[362272068,1748136640628,-551.1,0.00019999,2]
[362272069,1748136640637,-551.1,0.00019999,2]
[362272070,1748136640646,-852.61,0.00019999,2]
[362272071,1748136640656,-852.61,0.00019999,2]
[362272072,1748136640667,-852.61,0.00019999,2]
[362272073,1748136640678,-852.61,0.00019999,2]
[362272074,1748136640689,-852.61,0.00019999,2]
[362272075,1748136640700,-852.61,0.00019999,2]
[362272076,1748136640709,-852.61,0.00019999,2]
[362272077,1748136640719,-852.61,0.00019999,2]
[362272078,1748136640728,-852.61,0.00019999,2]
[362272079,1748136640737,-852.61,0.00019999,2]
[362272080,1748136640746,-852.61,0.00019999,2]
[362272081,1748136640755,-852.61,0.00019999,2]
[362272082,1748136640764,-852.61,0.00019999,2]
[362272083,1748136640773,-852.61,0.00019999,2]
[362272084,1748136640783,-852.61,0.00019999,2]
[362272085,1748136640795,-852.61,0.00019999,2]
[362272086,1748136640805,-852.61,0.00019999,2]
[362272087,1748136640814,-420.0,0.00019999,2]
[362272088,1748136640823,-852.61,0.00019999,2]
[362272089,1748136640833,-300.58,0.00019999,2]
[362272090,1748136640842,-852.61,0.00019999,2]
[362272091,1748136640852,-852.61,0.00019999,2]
[362272092,1748136640862,-852.61,0.00019999,2]
[362272093,1748136640873,-852.61,0.00019999,2]
[362272094,1748136640883,-852.75062005,0.00019999,2]
[362272095,1748136640892,-420.0,0.00019999,2]
[362272096,1748136640901,-420.0,0.00019999,2]
[362272097,1748136640911,-420.0,0.00019999,2]
[362272098,1748136640920,-420.0,0.00019999,2]
[362272099,1748136640930,-420.0,0.00019999,2]
[362272100,1748136640939,-420.0,0.00019999,2]
[362272101,1748136640948,-420.0,0.00019999,2]
[362272102,1748136640958,-420.0,0.00019999,2]
[362272103,1748136640967,-420.0,0.00019999,2]
[362272104,1748136640978,-420.0,0.00019999,2]
[362272105,1748136640987,-641.24,0.00019999,2]
[362272106,1748136640996,-262.66,0.00019999,2]
[362272107,1748136641005,-641.24,0.00019999,2]
[362272108,1748136641015,-641.24,0.00019999,2]
[362272109,1748136641024,-641.24,0.00019999,2]
[362272110,1748136641033,-641.24,0.00019999,2]
[362272111,1748136641042,-641.24,0.00019999,2]
[362272112,1748136641051,-641.24,0.00019999,2]
[362272113,1748136641062,-641.24,0.00019999,2]